bitfinex-derivatives/quotes_SOLF0:USTF0_20250630
["timestamp","ask_amount","ask_price","bid_price","bid_amount"]
[1751296305029,6.5981,151.53,151.5,6.5989]
[1751296305227,5.88848694,151.54,151.48,2.1712]
[1751296305429,6.5998,151.49,151.42,10.53439184]
[1751296305730,5.88848694,151.51,151.43,37.3]
[1751296305925,6.5993,151.5,151.42,6.657]
[1751296306120,5.88848694,151.5,151.42,6.657]
[1751296306626,37.3,151.51,151.42,6.657]
[1751296306825,18.97758694,151.6,151.45,5.88848694]
[1751296306826,37.3,151.56,151.45,5.88848694]
[1751296307021,5.88848694,151.54,151.46,37.3]
[1751296307229,5.88848694,151.52,151.46,37.3]
[1751296307731,5.88848694,151.5,151.43,37.3]
[1751296307933,5.88848694,151.48,151.43,37.3]
[1751296308234,5.88848694,151.48,151.42,2.1885]
[1751296308235,5.88848694,151.47,151.42,2.1885]
[1751296308438,37.3,151.48,151.42,2.1885]
[1751296308733,6.6007,151.47,151.42,2.1885]
[1751296309730,6.6007,151.47,151.44,6.6015]
[1751296310432,37.3,151.48,151.44,6.6015]
[1751296310433,6.6009,151.46,151.44,6.6015]
[1751296310637,6.6009,151.46,151.43,6.602]
[1751296310840,37.3,151.48,151.42,2.1885]
[1751296311038,37.32,151.51,151.42,8.07698694]
[1751296311436,37.32,151.51,151.42,2.1885]
[1751296312139,37.32,151.54,151.45,5.88848694]
[1751296312335,37.32,151.54,151.46,39.4947]
[1751296312535,37.32,151.54,151.46,41.8243]
[1751296312944,5.88848694,151.49,151.42,2.1885]
[1751296313339,6.6003,151.48,151.42,2.1885]
[1751296313538,6.6003,151.48,151.43,37.32]
[1751296313844,6.5991,151.5,151.46,6.6007]
[1751296314042,5.88848694,151.51,151.43,37.32]
[1751296314446,37.32,151.54,151.44,5.88848694]
[1751296314643,43.20848694,151.54,151.44,5.88848694]
[1751296314944,6.5985,151.52,151.49,6.5993]
[1751296315142,37.32,151.54,151.47,37.32]
[1751296315441,5.88848694,151.55,151.47,37.32]
[1751296315945,5.88848694,151.55,151.48,6.6407]
[1751296316146,6.5979,151.53,151.5,6.5989]
[1751296316334,6.5979,151.53,151.48,6.6407]
[1751296316535,5.88848694,151.56,151.48,6.6407]
[1751296317340,6.5975,151.54,151.51,6.5986]
[1751296318238,6.5979,151.53,151.5,6.5989]
[1751296318440,6.5979,151.53,151.48,6.6407]
[1751296318839,6.5975,151.54,151.51,6.5984]
[1751296319041,43.20848694,151.57,151.48,6.6407]
[1751296319248,6.5972,151.55,151.52,6.5982]
[1751296319447,43.20848694,151.57,151.48,6.6407]
[1751296319847,6.5974,151.54,151.48,6.6407]
[1751296320349,6.5974,151.54,151.51,6.5983]
[1751296321951,6.5972,151.55,151.52,6.598]
[1751296322256,43.20848694,151.57,151.48,6.6407]
[1751296322550,6.5978,151.53,151.48,6.6407]
[1751296323449,6.5976,151.54,151.48,6.6407]
[1751296324955,5.88848694,151.55,151.48,6.6407]
[1751296325357,6.5976,151.54,151.51,6.5984]
[1751296325856,5.88848694,151.53,151.48,41.7519]
[1751296326058,12.48658694,151.53,151.5,6.5989]
[1751296326355,5.88848694,151.53,151.48,41.7519]
[1751296326746,5.88848694,151.51,151.48,37.32]
[1751296326949,5.88848694,151.51,151.49,6.5995]
[1751296327149,5.88848694,151.53,151.48,37.32]
[1751296327563,5.88848694,151.53,151.5,6.5988]
[1751296328253,5.88848694,151.53,151.49,6.5994]
[1751296328452,5.88848694,151.53,151.48,37.32]
[1751296329156,6.5984,151.52,151.49,6.5992]
[1751296329358,6.5984,151.52,151.48,37.32]
[1751296329956,5.88848694,151.54,151.48,37.32]
[1751296330558,12.48598694,151.54,151.48,37.32]
[1751296330959,5.88848694,151.54,151.52,6.598]
[1751296332160,12.48608694,151.54,151.51,6.5985]
[1751296332761,12.48608694,151.54,151.52,6.5982]
[1751296333260,5.88848694,151.54,151.48,37.32]
[1751296333561,37.32,151.57,151.48,37.32]
[1751296333764,43.20848694,151.57,151.49,4.5472]
[1751296333963,43.20848694,151.57,151.52,6.598]
[1751296334464,6.5975,151.54,151.52,6.598]
[1751296335164,5.88848694,151.55,151.49,4.5472]
[1751296335565,6.5985,151.52,151.49,4.5472]
[1751296335758,5.88848694,151.53,151.48,37.32]
[1751296335954,5.88848694,151.49,151.45,12.87519184]
[1751296336160,5.88848694,151.49,151.45,13.462]
[1751296336458,5.88848694,151.49,151.45,4.6059]
[1751296336764,5.88848694,151.47,151.43,6.6021]
[1751296337163,6.6015,151.45,151.41,596.3187]
[1751296337363,5.88848694,151.45,151.4,37.2]
[1751296337560,12.48998694,151.45,151.4,37.2]
[1751296337760,5.88848694,151.45,151.4,37.2]
[1751296337960,5.88848694,151.47,151.4,37.2]
[1751296338163,12.48918694,151.47,151.4,37.2]
[1751296338764,6.6009,151.46,151.44,6.6015]
[1751296338967,5.88848694,151.47,151.4,37.2]
[1751296339368,6.6015,151.45,151.42,6.6022]
[1751296339568,6.6015,151.45,151.4,37.2]
[1751296340470,6.6015,151.45,151.43,6.6019]
[1751296340974,5.88848694,151.45,151.42,6.6024]
[1751296341874,12.49008694,151.45,151.42,6.6024]
[1751296342068,5.88848694,151.45,151.42,6.6024]
[1751296342279,12.49098694,151.43,151.4,37.2]
[1751296342469,5.88848694,151.43,151.37,45.51279184]
[1751296342672,5.88848694,151.41,151.37,39.4987]
[1751296343275,5.88848694,151.41,151.37,37.22]
[1751296343474,5.88848694,151.4,151.34,635.6976]
[1751296343875,5.88848694,151.38,151.34,37.22]
[1751296344077,12.49378694,151.36,151.32,2.152]
[1751296344672,6.6058,151.35,151.32,2.152]
[1751296344976,5.88848694,151.36,151.31,37.22]
[1751296346073,37.22,151.41,151.31,43.10848694]
[1751296346269,5.88848694,151.39,151.31,49.12257878]
[1751296346474,5.88848694,151.39,151.35,6.6054]
[1751296346776,5.88848694,151.37,151.31,37.22]
[1751296347079,37.22,151.41,151.31,43.10848694]
[1751296347377,5.88848694,151.4,151.31,37.22]
[1751296347578,6.6044,151.38,151.31,37.22]
[1751296347778,5.88848694,151.4,151.31,37.22]
[1751296347979,37.22,151.41,151.31,37.22]
[1751296348283,5.88848694,151.4,151.31,37.22]
[1751296348479,6.6043,151.39,151.35,6.6054]
[1751296348681,5.88848694,151.4,151.35,6.6054]
[1751296348879,5.88848694,151.4,151.31,37.22]
[1751296349179,5.88848694,151.38,151.31,37.22]
[1751296349581,12.49308694,151.38,151.35,6.6053]
[1751296350276,37.22,151.41,151.31,37.22]
[1751296350471,43.9173,151.44,151.31,43.10848694]
[1751296350676,5.88848694,151.41,151.31,43.10848694]
[1751296350878,12.49258694,151.39,151.36,6.6049]
[1751296351582,12.49258694,151.39,151.31,37.22]
[1751296352082,12.49258694,151.39,151.36,6.6048]
[1751296352979,6.6044,151.38,151.35,6.6055]
[1751296353181,6.6044,151.38,151.31,37.22]
[1751296353182,5.88848694,151.39,151.31,37.22]
[1751296353381,12.49258694,151.39,151.36,6.605]
[1751296353577,5.88848694,151.39,151.31,37.22]
[1751296354180,6.6052,151.36,151.33,6.6063]
[1751296354382,5.88848694,151.39,151.31,37.22]
[1751296355485,6.605,151.37,151.34,6.6057]
[1751296356184,6.6052,151.36,151.34,6.6057]
[1751296356574,6.6051,151.37,151.34,6.6057]
[1751296358086,6.6051,151.37,151.35,6.6056]
[1751296358283,37.24,151.4,151.31,37.22]
[1751296358586,6.6973,151.44,151.32,5.88848694]
[1751296358587,5.88848694,151.43,151.32,5.88848694]
[1751296358786,6.6027,151.42,151.4,6.6034]
[1751296358986,5.88848694,151.43,151.4,6.6034]
[1751296359289,12.49108694,151.43,151.4,6.6034]
[1751296359482,5.88848694,151.43,151.39,6.6037]
[1751296359889,6.6031,151.41,151.39,6.6037]
[1751296360188,6.6031,151.41,151.38,6.6041]
[1751296360387,6.6031,151.41,151.36,37.24]
[1751296360588,37.24,151.45,151.36,37.24]
[1751296360589,43.12848694,151.45,151.36,37.24]
[1751296360783,43.12848694,151.45,151.37,4.4271]
[1751296361483,6.6024,151.43,151.37,4.4271]
[1751296362090,43.12848694,151.45,151.41,6.6029]
[1751296362288,43.12848694,151.45,151.37,4.4271]
[1751296362591,5.88848694,151.47,151.38,5.88848694]
[1751296362793,37.14,151.48,151.38,5.88848694]
[1751296363091,6.601,151.46,151.43,6.6018]
[1751296363292,5.88848694,151.47,151.4,37.14]
[1751296363591,12.63228694,151.49,151.4,37.14]
[1751296363789,10.44878694,151.49,151.4,37.14]
[1751296363995,5.88848694,151.47,151.4,37.14]
[1751296364186,6.6016,151.45,151.42,6.6026]
[1751296364386,6.6016,151.45,151.4,37.14]
[1751296365085,6.601,151.46,151.43,6.6019]
[1751296365793,6.6014,151.45,151.42,6.6024]
[1751296367095,6.6011,151.46,151.43,6.6021]
[1751296367393,6.6011,151.46,151.4,37.14]
[1751296367594,6.6011,151.46,151.43,6.6019]
[1751296367795,10.15202472,151.47,151.4,37.14]
[1751296368190,3.55142472,151.47,151.4,37.14]
[1751296368392,3.55142472,151.47,151.41,2.2082]
[1751296368585,3.55142472,151.49,151.44,6.6015]
[1751296369490,6.6007,151.47,151.44,6.6015]
[1751296369985,3.55142472,151.49,151.44,6.6015]
[1751296370391,6.6008,151.47,151.44,6.6015]
[1751296372497,6.6008,151.47,151.45,6.6013]
[1751296372794,6.6008,151.47,151.41,2.2082]
[1751296373189,6.6008,151.47,151.44,6.6014]
[1751296374901,6.6008,151.47,151.45,6.6012]
[1751296375099,6.6008,151.47,151.41,2.2082]
[1751296375500,6.6008,151.47,151.44,6.6013]
[1751296375699,6.6008,151.47,151.41,2.2082]
[1751296376600,6.6008,151.47,151.44,6.6014]
[1751296377693,3.55142472,151.48,151.44,6.6014]
[1751296377694,6.601,151.46,151.44,6.6014]
[1751296380901,3.55142472,151.46,151.41,2.2082]
[1751296381296,3.55142472,151.49,151.41,5.75962472]
[1751296381704,3.55142472,151.49,151.41,11.77371656]
[1751296382109,3.55142472,151.45,151.41,8.22229184]
[1751296382312,3.55142472,151.45,151.4,37.12]
[1751296382509,3.55142472,151.43,151.4,37.12]
[1751296383216,3.55142472,151.43,151.41,6.6026]
[1751296384003,10.15382472,151.43,151.41,6.6026]
[1751296384409,10.15392472,151.43,151.4,6.6032]
[1751296384807,3.55142472,151.43,151.41,6.6028]
[1751296386017,10.15382472,151.43,151.4,6.6032]
[1751296386214,3.55142472,151.43,151.4,6.6032]
[1751296386713,6.6027,151.42,151.4,6.6032]
[1751296387513,6.6027,151.42,151.39,6.6036]
[1751296387819,3.55142472,151.41,151.4,6.57866414]
[1751296388318,3.55142472,151.41,151.34,37.12]
[1751296388517,3.55142472,151.37,151.34,37.12]
[1751296389020,10.15642472,151.37,151.34,43.7258]
[1751296389916,3.55142472,151.37,151.35,6.6056]
[1751296391118,3.55142472,151.37,151.36,6.6052]
[1751296391418,3.55142472,151.39,151.34,37.12]
[1751296392716,3.55142472,151.41,151.34,37.12]
[1751296392914,3.55142472,151.41,151.34,40.67142472]
[1751296393420,3.55142472,151.41,151.39,6.6036]
[1751296393621,3.55142472,151.41,151.34,40.67142472]
[1751296393815,2.2189,151.45,151.34,37.12]
[1751296393816,3.55142472,151.39,151.34,37.12]
[1751296394017,10.15562472,151.39,151.36,6.6049]
[1751296395320,6.6044,151.38,151.35,6.6055]
[1751296395722,3.55142472,151.39,151.34,37.12]
[1751296395924,10.15552472,151.39,151.36,6.605]
[1751296396124,3.55142472,151.39,151.36,6.605]
[1751296396318,3.55142472,151.39,151.34,37.12]
[1751296396518,6.6047,151.38,151.35,6.6055]
[1751296397719,6.6047,151.38,151.36,6.6051]
[1751296397921,10.15532472,151.39,151.34,37.12]
[1751296398121,3.55142472,151.39,151.34,37.12]
[1751296398425,3.55142472,151.39,151.37,6.6045]
[1751296398624,6.6038,151.4,151.34,37.12]
[1751296398826,6.6038,151.4,151.37,6.6045]
[1751296399230,10.15462472,151.41,151.34,37.12]
[1751296399427,3.55142472,151.41,151.35,5.42453331]
[1751296399725,3.55142472,151.41,151.36,5.42382956]
[1751296400025,10.15462472,151.41,151.39,6.6037]
[1751296400222,3.55142472,151.43,151.34,40.67142472]
[1751296400526,10.15392472,151.43,151.4,6.6032]
[1751296401036,6.603,151.42,151.39,6.6038]
[1751296401722,6.603,151.42,151.4,6.6033]
[1751296403525,10.15372472,151.43,151.4,6.6033]
[1751296403720,3.55142472,151.43,151.38,36.98]
[1751296404129,6.6033,151.41,151.38,43.584]
[1751296405632,6.6035,151.4,151.38,43.584]
[1751296406532,6.6039,151.39,151.38,36.98]
[1751296406727,3.55142472,151.41,151.35,36.98]
[1751296407033,3.55142472,151.41,151.36,5.41612502]
[1751296407229,6.6037,151.4,151.37,12.02042502]
[1751296407431,6.6037,151.4,151.37,6.6043]
[1751296408430,6.6037,151.4,151.38,6.6043]
[1751296408833,3.55142472,151.39,151.35,36.98]
[1751296409128,3.55142472,151.39,151.37,6.6047]
[1751296409736,10.15532472,151.39,151.37,6.6047]
[1751296409930,3.55142472,151.39,151.37,6.6047]
[1751296410934,6.6045,151.38,151.36,6.605]
[1751296411836,10.15552472,151.39,151.36,6.605]
[1751296413030,6.6044,151.38,151.36,6.605]
[1751296413237,6.6044,151.38,151.35,43.5854]
[1751296413632,6.6049,151.37,151.35,43.5854]
[1751296414338,6.591,151.51,151.35,36.98]
[1751296414631,3.55142472,151.43,151.36,5.43018605]
[1751296414834,6.6028,151.42,151.4,6.6032]
[1751296415736,3.55142472,151.43,151.35,36.98]
[1751296415936,3.55142472,151.43,151.36,5.42927305]
[1751296416145,3.55142472,151.43,151.37,5.42927305]
[1751296416347,6.6028,151.42,151.38,5.42927305]
[1751296416540,6.6028,151.42,151.35,36.98]
[1751296416742,6.6028,151.42,151.39,6.6035]
[1751296417547,6.6028,151.42,151.4,6.6034]
[1751296418245,3.55142472,151.43,151.39,6.6037]
[1751296418447,3.55142472,151.43,151.35,36.98]
[1751296418642,3.55142472,151.43,151.36,5.43807077]
[1751296418945,3.55142472,151.43,151.37,5.43807077]
[1751296419145,3.55142472,151.43,151.38,5.43807077]
[1751296419347,10.15392472,151.43,151.41,6.6028]
[1751296419746,10.15392472,151.43,151.35,42.99409184]
[1751296419747,36.98,151.48,151.38,3.55142472]
[1751296419946,3.55142472,151.46,151.39,42.41909382]
[1751296420247,3.55142472,151.46,151.41,6.603]
[1751296420642,3.55142472,151.44,151.4,6.6032]
[1751296421248,6.6026,151.42,151.4,6.6032]
[1751296421449,3.55142472,151.44,151.39,6.6037]
[1751296421747,3.55142472,151.44,151.36,42.99409184]
[1751296421748,6.6028,151.42,151.36,36.98]
[1751296421949,6.6028,151.42,151.37,5.44251028]
[1751296422150,6.603,151.41,151.39,6.6035]
[1751296422947,3.55142472,151.42,151.36,36.98]
[1751296423144,3.55142472,151.4,151.37,5.43615784]
[1751296423350,3.55142472,151.4,151.38,5.43615784]
[1751296423652,3.55142472,151.4,151.33,42.81409184]
[1751296423850,3.55142472,151.38,151.34,5.44089916]
[1751296424051,3.55142472,151.38,151.35,5.44089916]
[1751296424251,3.55142472,151.4,151.36,5.44265148]
[1751296424451,3.55142472,151.4,151.33,42.81409184]
[1751296424648,10.15512472,151.4,151.38,6.6043]
[1751296424841,3.55142472,151.4,151.38,6.6043]
[1751296425040,36.8,151.44,151.34,3.55142472]
[1751296425246,6.6027,151.42,151.35,5.44145946]
[1751296425446,6.6027,151.42,151.36,5.44145946]
[1751296425647,6.6027,151.42,151.37,5.44145946]
[1751296425950,10.15452472,151.41,151.38,5.44145946]
[1751296426155,6.6031,151.41,151.34,9.56551656]
[1751296426341,6.6035,151.4,151.35,5.45158674]
[1751296426543,3.55142472,151.41,151.36,5.45158674]
[1751296426748,3.55142472,151.41,151.37,5.45158674]
[1751296426948,6.6042,151.39,151.36,6.6048]
[1751296427148,6.6042,151.39,151.37,5.4545797]
[1751296427353,6.6042,151.39,151.38,5.45684476]
[1751296428845,6.6042,151.39,151.37,6.6045]
[1751296429552,6.6043,151.38,151.36,6.605]
[1751296429754,6.6043,151.38,151.37,5.46118254]
[1751296432855,3.55142472,151.39,151.37,5.46118254]
[1751296433056,3.55142472,151.41,151.34,6.01409184]
[1751296433256,3.55142472,151.41,151.35,5.45732025]
[1751296433457,10.15462472,151.41,151.36,5.45732025]
[1751296433657,10.15462472,151.41,151.37,5.45732025]
[1751296433855,10.15462472,151.41,151.38,5.45732025]
[1751296434155,3.55142472,151.41,151.35,6.01409184]
[1751296434356,3.55142472,151.41,151.36,5.45630085]
[1751296434654,3.55142472,151.41,151.37,5.45630085]
[1751296434855,6.6041,151.39,151.38,5.45630085]
[1751296436653,10.15552472,151.39,151.38,5.45630085]
[1751296437057,6.605,151.37,151.35,6.6054]
[1751296437252,6.605,151.37,151.36,5.46695703]
[1751296437758,6.6046,151.38,151.36,5.46695703]
[1751296437959,6.6046,151.38,151.37,5.46695703]
[1751296438561,6.6049,151.37,151.33,6.01409184]
[1751296438762,6.6049,151.37,151.34,5.46714696]
[1751296438963,6.6049,151.37,151.35,5.46714696]
[1751296439261,6.6049,151.37,151.36,5.46714696]
[1751296440364,3.55142472,151.38,151.32,12.58299184]
[1751296440567,3.55142472,151.38,151.33,5.46707765]
[1751296440768,3.55142472,151.38,151.34,5.46707765]
[1751296440968,6.6041,151.39,151.35,5.46707765]
[1751296441164,6.6041,151.39,151.36,5.46707765]
[1751296441460,6.6041,151.39,151.33,6.01409184]
[1751296441668,6.6041,151.39,151.34,5.4792626]
[1751296441868,6.6041,151.39,151.36,6.605]
[1751296442464,6.6041,151.39,151.37,6.6048]
[1751296443066,6.6041,151.39,151.36,6.605]
[1751296443663,6.6043,151.38,151.36,6.605]
[1751296444066,40.35142472,151.4,151.36,6.605]
[1751296444265,6.6042,151.39,151.36,6.605]
[1751296444767,40.35142472,151.4,151.36,6.605]
[1751296444967,6.6041,151.39,151.36,6.605]
[1751296446762,6.6043,151.38,151.36,6.605]
[1751296447571,6.6043,151.38,151.35,6.6056]
[1751296447768,6.6043,151.38,151.36,5.47549752]
[1751296448072,6.6048,151.37,151.35,6.6056]
[1751296448272,3.55142472,151.38,151.36,5.47549431]
[1751296448473,3.55142472,151.38,151.32,12.58299184]
[1751296448668,3.55142472,151.36,151.33,12.08209713]
[1751296448874,3.55142472,151.36,151.34,5.47579713]
[1751296449171,3.55142472,151.36,151.35,5.47579713]
[1751296449570,10.15682472,151.36,151.35,5.47579713]
[1751296450372,6.6054,151.36,151.35,5.47579713]
[1751296452179,40.35142472,151.4,151.35,5.47579713]
[1751296452373,40.35142472,151.4,151.32,6.5689]
[1751296452575,6.6049,151.37,151.35,6.6054]
[1751296452773,3.55142472,151.36,151.32,12.58299184]
[1751296452975,3.55142472,151.36,151.33,5.48346915]
[1751296453180,6.6059,151.35,151.34,5.48346915]
[1751296453573,19.8132,151.45,151.34,5.48346915]
[1751296453574,12.32506548,151.45,151.34,12.08346915]
[1751296453778,12.32506548,151.47,151.39,3.55274727]
[1751296453976,36.62,151.48,151.4,7.6914839]
[1751296454184,36.62,151.48,151.41,5.4824839]
[1751296454378,36.62,151.48,151.42,5.4824839]
[1751296454578,43.2203,151.48,151.43,5.4824839]
[1751296454782,36.62,151.48,151.44,5.4824839]
[1751296454982,36.62,151.48,151.41,6.01409184]
[1751296455281,36.62,151.48,151.42,9.02424919]
[1751296455584,36.62,151.48,151.43,5.47150192]
[1751296455784,36.62,151.48,151.44,5.47150192]
[1751296455980,36.62,151.48,151.4,10.54119184]
[1751296456186,36.62,151.48,151.41,5.46788936]
[1751296456385,3.55047036,151.44,151.4,4.5271]
[1751296456589,36.62,151.48,151.41,5.42865834]
[1751296456784,3.55047036,151.46,151.42,5.42865834]
[1751296456982,46.77087036,151.48,151.4,8.07757036]
[1751296457179,46.77087036,151.48,151.41,5.42768225]
[1751296457383,46.77087036,151.48,151.4,8.07757036]
[1751296457689,46.77087036,151.48,151.41,5.42594222]
[1751296457985,46.77087036,151.48,151.44,6.6013]
[1751296458187,40.17047036,151.48,151.4,8.07757036]
[1751296458385,40.17047036,151.48,151.41,5.42497453]
[1751296458587,40.17047036,151.48,151.42,5.42497453]
[1751296458789,3.55047036,151.46,151.4,4.5271]
[1751296458992,3.55047036,151.46,151.41,5.42317499]
[1751296459184,10.15257036,151.44,151.4,6.6033]
[1751296459491,40.17047036,151.44,151.41,5.63361007]
[1751296459685,36.62,151.44,151.38,8.31189184]
[1751296459884,40.17047036,151.44,151.39,5.63361268]
[1751296460087,40.17047036,151.44,151.4,5.63361268]
[1751296460279,40.17047036,151.44,151.41,5.63361268]
[1751296460489,40.17047036,151.44,151.38,8.31189184]
[1751296460792,40.17047036,151.44,151.39,5.63342808]
[1751296461088,40.17047036,151.44,151.4,5.63342808]
[1751296461291,40.17047036,151.44,151.41,5.63342808]
[1751296461484,10.15307036,151.42,151.37,6.01409184]
[1751296461685,10.15307036,151.42,151.38,5.63858422]
[1751296461885,3.55047036,151.4,151.39,5.63858422]
[1751296462091,3.55047036,151.4,151.39,12.24248422]
[1751296462290,3.55047036,151.42,151.39,5.63858422]
[1751296462490,3.55047036,151.42,151.4,5.63858422]
[1751296462690,40.17047036,151.44,151.37,6.01409184]
[1751296462891,40.17047036,151.44,151.38,5.63835109]
[1751296463092,40.17047036,151.44,151.39,5.63835109]
[1751296463392,40.17047036,151.44,151.43,6.6021]
[1751296463884,4.6637,151.51,151.4,3.55047036]
[1751296463885,40.17047036,151.48,151.4,3.55047036]
[1751296464085,40.17047036,151.48,151.41,10.3304697]
[1751296464290,40.17047036,151.48,151.42,5.6354697]
[1751296464486,46.77057036,151.48,151.45,6.601]
[1751296465690,46.77057036,151.48,151.46,6.6008]
[1751296465992,40.17047036,151.48,151.46,6.6008]
[1751296466191,40.17047036,151.48,151.47,6.6004]
[1751296467890,3.55047036,151.48,151.47,6.6004]
[1751296468190,3.55047036,151.49,151.47,6.6004]
[1751296468387,10.15007036,151.49,151.46,6.6007]
[1751296468985,3.55047036,151.49,151.42,3.55047036]
[1751296469194,3.55047036,151.49,151.47,6.6002]
[1751296469791,10.14997036,151.49,151.47,6.6002]
[1751296470092,10.14997036,151.49,151.46,6.6006]
[1751296472489,10.14997036,151.49,151.47,6.6003]
[1751296472694,3.55047036,151.49,151.42,3.55047036]
[1751296472995,3.55047036,151.49,151.43,5.61694529]
[1751296473292,3.55047036,151.49,151.44,5.61694529]
[1751296473589,3.55047036,151.49,151.42,3.55047036]
[1751296473798,36.6,151.5,151.43,5.61709089]
[1751296473995,36.6,151.5,151.44,5.61709089]
[1751296474200,36.6,151.5,151.45,5.61709089]
[1751296474387,36.6,151.5,151.49,6.5995]
[1751296474588,3.55047036,151.51,151.49,6.5995]
[1751296474893,3.55047036,151.51,151.43,36.6]
[1751296475095,3.55047036,151.48,151.44,5.61563074]
[1751296475289,6.6006,151.47,151.41,10.70909184]
[1751296475483,6.6006,151.47,151.42,5.61460611]
[1751296475688,6.6006,151.47,151.43,5.61460611]
[1751296475889,6.6006,151.47,151.44,5.61460611]
[1751296476190,6.6006,151.47,151.44,6.6014]
[1751296477691,10.15147036,151.46,151.44,6.6014]
[1751296477891,3.55047036,151.46,151.42,6.6024]
[1751296478185,3.55047036,151.46,151.4,44.79529184]
[1751296478186,3.55047036,151.46,151.4,38.7812]
[1751296478385,6.6015,151.45,151.41,5.60650603]
[1751296478594,6.6015,151.45,151.42,5.60650603]
[1751296478794,6.6015,151.45,151.4,38.7812]
[1751296479107,6.6015,151.45,151.41,5.60629656]
[1751296479400,6.6015,151.45,151.4,38.7812]
[1751296479598,6.6015,151.45,151.41,5.60610677]
[1751296479802,6.6015,151.45,151.4,38.7812]
[1751296479988,6.6015,151.45,151.41,5.60610677]
[1751296480194,6.6015,151.45,151.4,38.7812]
[1751296480501,6.6015,151.45,151.41,5.6063436]
[1751296480697,6.6015,151.45,151.4,38.7812]
[1751296480898,6.6015,151.45,151.41,5.60607745]
[1751296481094,3.55047036,151.46,151.4,2.1812]
[1751296481289,3.55047036,151.44,151.41,5.60608054]
[1751296481496,3.55047036,151.44,151.38,6.01409184]
[1751296481694,3.55047036,151.44,151.39,5.60617957]
[1751296481898,3.55047036,151.42,151.4,5.60617957]
[1751296482200,3.55047036,151.42,151.37,40.9203]
[1751296482399,3.55047036,151.42,151.38,5.60842084]
[1751296482592,3.55047036,151.42,151.39,12.21192084]
[1751296482790,3.55047036,151.42,151.39,6.6035]
[1751296483700,10.15327036,151.42,151.39,6.6035]
[1751296485502,10.15327036,151.42,151.4,6.6033]
[1751296487998,10.15327036,151.42,151.39,6.6038]
[1751296488200,6.603,151.41,151.39,6.6038]
[1751296488702,6.603,151.41,151.38,6.6041]
[1751296489508,10.15397036,151.4,151.37,6.6046]
[1751296489697,3.55047036,151.4,151.37,6.6046]
[1751296490406,6.6039,151.39,151.37,6.6046]
[1751296490599,3.55047036,151.4,151.38,6.6043]
[1751296491510,2.166,151.47,151.34,48.6172622]
[1751296491804,6.603,151.41,151.35,5.53740151]
[1751296492008,6.603,151.41,151.36,5.53740151]
[1751296492304,10.15417036,151.4,151.37,5.53740151]
[1751296492608,10.15417036,151.4,151.34,39.0527]
[1751296492609,3.55047036,151.4,151.38,6.6041]
[1751296492801,3.55047036,151.4,151.34,39.0527]
[1751296492997,3.55047036,151.4,151.35,5.54314412]
[1751296493198,3.55047036,151.4,151.36,5.54314412]
[1751296493398,3.55047036,151.4,151.38,6.6041]
[1751296493799,3.55047036,151.4,151.34,48.6172622]
[1751296493999,3.55047036,151.4,151.39,6.6039]
[1751296495208,3.55047036,151.42,151.4,6.6034]
[1751296496008,3.55047036,151.42,151.39,6.6036]
[1751296496510,10.15337036,151.42,151.39,6.6036]
[1751296497205,3.55047036,151.4,151.35,6.01409184]
[1751296497508,3.55047036,151.4,151.36,8.74471601]
[1751296497712,10.15417036,151.4,151.37,15.34921601]
[1751296498012,10.15417036,151.4,151.37,6.6045]
[1751296498208,10.15417036,151.4,151.38,6.6041]
[1751296498409,10.15417036,151.4,151.34,45.06679184]
[1751296498609,10.15417036,151.4,151.35,8.74958071]
[1751296498799,10.15417036,151.4,151.37,6.6045]
[1751296499203,6.604,151.39,151.37,6.6045]
[1751296499707,6.604,151.39,151.36,6.605]
[1751296499912,3.55047036,151.4,151.37,8.74839053]
[1751296500112,3.55047036,151.4,151.36,6.605]
[1751296500310,3.55047036,151.4,151.37,8.74866916]
[1751296500510,3.55047036,151.4,151.36,6.605]
[1751296500712,3.55047036,151.4,151.37,5.5526562]
[1751296501016,6.6041,151.39,151.36,6.605]